[Event "12th KIIT International 2019"]
[Site "Odisha"]
[Date "2019.06.03"]
[Round "5.7"]
[White "Sahoo, Utkal Ranjan"]
[Black "Shyaamnikhil P"]
[Result "0-1"]
[ECO "A45"]
[WhiteElo "2371"]
[BlackElo "2434"]
[Annotator "ChessBase"]
[PlyCount "114"]
[EventDate "2019.05.31"]
[EventType "swiss"]
[EventCountry "IND"]
[SourceTitle "playchess.com"]
[Source "ChessBase"]
[SourceQuality "1"]
[TimeControl "5400+30"]

1. d4 {[%emt 0:00:00]} Nf6 {[%emt 0:00:00]} 2. Bg5 {[%emt 0:00:00]} c5 {[%emt 0:01:13]} 3. d5 {[%emt 0:00:46]} Ne4 {[%emt 0:02:43]} 4. Bf4 {[%emt 0:00:32]} Qb6 {[%emt 0:09:57]} 5. Nd2 {[%emt 0:01:05]} Nxd2 {[%emt 0:04:32]} 6. Bxd2 {[%emt 0:00:09]} e5 {[%emt 0:05:38]} 7. dxe6 {[%emt 0:20:33]} dxe6 {[%emt 0:12:28]} 8. Bc3 {[%emt 0:01:44]} Nc6 {[%emt 0:03:44]} 9. Nf3 {[%emt 0:01:00]} Bd7 {[%emt 0:02:58]} 10. e3 {[%emt 0:03:59]} O-O-O {[%emt 0:02:58]} 11. a4 {[%emt 0:03:30]} Qc7 {[%emt 0:10:52]} 12. a5 {[%emt 0:03:58]} Be7 {[%emt 0:05:18]} 13. a6 {[%emt 0:04:33]} b6 {[%emt 0:00:24]} 14. Bb5 {[%emt 0:02:32]} Bf6 {[%emt 0:01:17]} 15. Qe2 {[%emt 0:05:42]} Bxc3+ {[%emt 0:02:58]} 16. bxc3 {[%emt 0:02:13]} Ne7 {[%emt 0:00:43]} 17. c4 {[%emt 0:02:35]} Bc6 {[%emt 0:02:12]} 18. O-O {[%emt 0:01:34]} f6 {[%emt 0:04:02]} 19. Ra3 {[%emt 0:16:07]} Rd6 {[%emt 0:02:40]} 20. e4 {[%emt 0:07:34]} Ng6 {[%emt 0:05:30]} 21. e5 {[%emt 0:08:06]} Bxf3 {[%emt 0:00:52]} 22. Rxf3 {[%emt 0:00:18]} Nxe5 {[%emt 0:03:40]} 23. Re3 {[%emt 0:00:12]} g5 {[%emt 0:04:27]} 24. f4 {[%emt 0:03:30]} gxf4 {[%emt 0:00:19]} 25. Rxf4 {[%emt 0:00:02]} Qd8 {[%emt 0:01:50]} 26. h3 {[%emt 0:03:57]} Rd1+ {[%emt 0:05:43]} 27. Kh2 {[%emt 0:01:53]} Rd2 {[%emt 0:01:56]} 28. Qf1 {[%emt 0:01:14]} Rg8 {[%emt 0:00:13]} 29. Re2 {[%emt 0:00:59]} Rxe2 {[%emt 0:02:09]} 30. Qxe2 {[%emt 0:00:02]} Qc7 {[%emt 0:00:17]} 31. Qe4 {[%emt 0:01:48]} f5 {[%emt 0:00:41]} 32. Qa8+ {[%emt 0:02:25]} Qb8 {[%emt 0:00:05]} 33. Qxb8+ {[%emt 0:00:24]} Kxb8 {[%emt 0:00:06]} 34. g4 {[%emt 0:01:24]} fxg4 {[%emt 0:00:33]} 35. hxg4 {[%emt 0:00:02]} Kc7 {[%emt 0:00:29]} 36. Kh3 {[%emt 0:00:30]} Kd6 {[%emt 0:00:15]} 37. Re4 {[%emt 0:00:29]} Rf8 {[%emt 0:00:26]} 38. Re2 {[%emt 0:00:53]} Rf4 {[%emt 0:00:45]} 39. g5 {[%emt 0:00:26]} Rd4 {[%emt 0:01:36]} 40. Re1 {[%emt 0:00:47]} Nf3 {[%emt 0:00:19]} 41. Rf1 {[%emt 0:00:25]} Nxg5+ {[%emt 0:00:09]} 42. Kg3 {[%emt 0:00:05]} Ke7 {[%emt 0:00:25]} 43. Rh1 {[%emt 0:00:16]} Ne4+ {[%emt 0:01:05]} 44. Kf3 {[%emt 0:00:20]} Nf6 {[%emt 0:00:04]} 45. Ke3 {[%emt 0:00:34]} h5 {[%emt 0:00:20]} 46. c3 {[%emt 0:00:26]} Rg4 {[%emt 0:00:17]} 47. Kd3 {[%emt 0:00:09]} h4 {[%emt 0:01:13]} 48. Bc6 {[%emt 0:00:11]} Rg3+ {[%emt 0:00:04]} 49. Ke2 {[%emt 0:00:22]} Rg4 {[%emt 0:00:25]} 50. Bf3 {[%emt 0:00:12]} Rxc4 {[%emt 0:00:39]} 51. Kd3 {[%emt 0:00:34]} Rf4 {[%emt 0:00:29]} 52. Ke3 {[%emt 0:01:11]} Ra4 {[%emt 0:00:25]} 53. Be2 {[%emt 0:00:34]} Nd5+ {[%emt 0:00:12]} 54. Kf3 {[%emt 0:00:52]} Nxc3 {[%emt 0:00:26]} 55. Bd3 {[%emt 0:00:08]} Nd5 {[%emt 0:00:32]} 56. Bb5 {[%emt 0:01:28]} Rf4+ {[%emt 0:00:14]} 57. Kg2 {[%emt 0:00:12]} c4 {[%emt 0:01:03]} 0-1

[Event "12th KIIT International 2019"]
[Site "Odisha"]
[Date "2019.06.03"]
[Round "5.12"]
[White "Debashis, Das"]
[Black "Panda Sambit"]
[Result "1-0"]
[ECO "D36"]
[WhiteElo "2544"]
[BlackElo "2211"]
[Annotator "ChessBase"]
[PlyCount "75"]
[EventDate "2019.05.31"]
[EventType "swiss"]
[EventCountry "IND"]
[SourceTitle "playchess.com"]
[Source "ChessBase"]
[SourceQuality "1"]
[TimeControl "5400+30"]

1. c4 {[%emt 0:00:00]} e6 {[%emt 0:00:00]} 2. Nc3 {[%emt 0:00:00]} d5 {[%emt 0:00:00]} 3. d4 {[%emt 0:00:04]} Nf6 {[%emt 0:00:00]} 4. cxd5 {[%emt 0:00:05]} exd5 {[%emt 0:00:00]} 5. Bg5 {[%emt 0:00:04]} c6 {[%emt 0:00:00]} 6. Qc2 {[%emt 0:00:06]} Be7 {[%emt 0:00:04]} 7. e3 {[%emt 0:00:04]} Nbd7 {[%emt 0:00:09]} 8. Bd3 {[%emt 0:00:14]} O-O {[%emt 0:00:06]} 9. Nge2 {[%emt 0:00:07]} Re8 {[%emt 0:00:04]} 10. O-O {[%emt 0:00:23]} Nf8 {[%emt 0:00:04]} 11. f3 {[%emt 0:00:06]} g6 {[%emt 0:00:03]} 12. Bh4 {[%emt 0:04:35]} Ne6 {[%emt 0:02:59]} 13. Kh1 {[%emt 0:04:39]} b5 {[%emt 0:00:30]} 14. Bf2 {[%emt 0:09:31]} Bb7 {[%emt 0:13:40]} 15. e4 {[%emt 0:06:23]} b4 {[%emt 0:19:43]} 16. Na4 {[%emt 0:00:38]} Rc8 {[%emt 0:00:13]} 17. e5 {[%emt 0:04:43]} Nd7 {[%emt 0:00:56]} 18. f4 {[%emt 0:03:23]} c5 {[%emt 0:07:03]} 19. Qd2 {[%emt 0:00:27]} Nxd4 {[%emt 0:11:29]} 20. Nxd4 {[%emt 0:01:36]} cxd4 {[%emt 0:03:33]} 21. Bxd4 {[%emt 0:01:53]} Qa5 {[%emt 0:16:42]} 22. f5 {[%emt 0:01:20]} Nxe5 {[%emt 0:17:25]} 23. Bxe5 {[%emt 0:01:36]} Bf8 {[%emt 0:00:02]} 24. Qf4 {[%emt 0:06:44]} Rxe5 {[%emt 0:02:09]} 25. Qxe5 {[%emt 0:00:09]} Qxa4 {[%emt 0:00:06]} 26. fxg6 {[%emt 0:00:09]} fxg6 {[%emt 0:00:21]} 27. Qe6+ {[%emt 0:06:42]} Kh8 {[%emt 0:00:29]} 28. Qxc8 Bxc8 {[%emt 0:00:30]} 29. Rxf8+ Kg7 {[%emt 0:00:30]} 30. Rxc8 a5 {[%emt 0:00:30]} 31. b3 Qd7 {[%emt 0:00:30]} 32. Rc2 Qg4 {[%emt 0:00:30]} 33. Rd2 h5 {[%emt 0:00:30]} 34. Rad1 h4 {[%emt 0:00:30]} 35. Be2 Qf4 {[%emt 0:00:30]} 36. h3 Qf8 {[%emt 0:00:30]} 37. Bf3 Kh6 {[%emt 0:00:30]} 38. Rd3 1-0

[Event "12th KIIT International 2019"]
[Site "Odisha"]
[Date "2019.06.03"]
[Round "5.13"]
[White "Malakhatko, Vadim"]
[Black "Suvrajit, Saha"]
[Result "0-1"]
[ECO "E16"]
[WhiteElo "2505"]
[BlackElo "2208"]
[Annotator "ChessBase"]
[PlyCount "93"]
[EventDate "2019.05.31"]
[EventType "swiss"]
[EventCountry "IND"]
[SourceTitle "playchess.com"]
[Source "ChessBase"]
[SourceQuality "1"]
[TimeControl "5400+30"]

1. c4 {[%emt 0:00:00]} Nf6 {[%emt 0:00:00]} 2. Nf3 {[%emt 0:00:09]} e6 {[%emt 0:00:08]} 3. g3 {[%emt 0:00:07]} b6 {[%emt 0:00:42]} 4. Bg2 {[%emt 0:00:24]} Bb7 {[%emt 0:00:08]} 5. d4 {[%emt 0:00:07]} Bb4+ {[%emt 0:00:24]} 6. Bd2 {[%emt 0:00:07]} Qe7 {[%emt 0:00:52]} 7. O-O {[%emt 0:03:43]} Bxd2 {[%emt 0:00:07]} 8. Qxd2 {[%emt 0:00:04]} O-O {[%emt 0:01:02]} 9. Nc3 {[%emt 0:00:10]} d6 {[%emt 0:02:47]} 10. d5 {[%emt 0:04:15]} e5 {[%emt 0:01:45]} 11. b4 {[%emt 0:05:42]} a5 {[%emt 0:02:32]} 12. a3 {[%emt 0:00:05]} Nbd7 {[%emt 0:00:15]} 13. Nb5 {[%emt 0:09:28]} Qd8 {[%emt 0:06:56]} 14. Nh4 {[%emt 0:03:05]} Re8 {[%emt 0:03:00]} 15. e4 {[%emt 0:00:08]} Nf8 {[%emt 0:02:05]} 16. Rfc1 {[%emt 0:14:16]} Ba6 {[%emt 0:03:10]} 17. Nf5 {[%emt 0:04:22]} h6 {[%emt 0:02:44]} 18. Ne3 {[%emt 0:06:30]} Bxb5 {[%emt 0:05:44]} 19. cxb5 {[%emt 0:00:31]} Qd7 {[%emt 0:01:10]} 20. Qe2 {[%emt 0:12:51]} Ra7 {[%emt 0:06:06]} 21. Qc4 {[%emt 0:00:09]} axb4 {[%emt 0:07:52]} 22. axb4 {[%emt 0:00:06]} Rxa1 {[%emt 0:00:03]} 23. Rxa1 {[%emt 0:00:05]} Rb8 {[%emt 0:00:30]} 24. Ra7 {[%emt 0:03:50]} Ne8 {[%emt 0:00:07]} 25. Bf3 {[%emt 0:00:09]} Qd8 {[%emt 0:03:06]} 26. Qc6 {[%emt 0:04:43]} Nh7 {[%emt 0:00:15]} 27. h4 {[%emt 0:01:44]} g6 {[%emt 0:02:32]} 28. h5 {[%emt 0:01:37]} Ng5 {[%emt 0:07:09]} 29. Bg2 {[%emt 0:00:07]} gxh5 {[%emt 0:04:14]} 30. Nf5 {[%emt 0:03:37]} Qf6 {[%emt 0:01:11]} 31. f4 {[%emt 0:05:29]} exf4 {[%emt 0:01:07]} 32. gxf4 {[%emt 0:00:06]} Nh7 {[%emt 0:00:53]} 33. Qc1 Nf8 {[%emt 0:04:41]} 34. Qe3 {[%emt 0:06:26]} Kh8 {[%emt 0:04:18]} 35. Qd4 {[%emt 0:03:16]} Ng6 {[%emt 0:03:08]} 36. Qxf6+ {[%emt 0:00:20]} Nxf6 {[%emt 0:00:02]} 37. Rxc7 {[%emt 0:02:24]} Ra8 {[%emt 0:05:18]} 38. Nxh6 {[%emt 0:03:30]} Ng4 {[%emt 0:08:48]} 39. Nxg4 {[%emt 0:02:27]} hxg4 {[%emt 0:00:01]} 40. Rxf7 {[%emt 0:00:16]} g3 {[%emt 0:00:48]} 41. Bh3 {[%emt 0:03:11]} Nh4 {[%emt 0:01:01]} 42. Kf1 {[%emt 0:00:04]} Ra2 {[%emt 0:02:07]} 43. Ke1 {[%emt 0:00:09]} Rh2 {[%emt 0:03:01]} 44. Bf1 {[%emt 0:00:05]} Nf3+ {[%emt 0:01:23]} 45. Kd1 {[%emt 0:00:04]} Rh1 {[%emt 0:00:20]} 46. Ke2 {[%emt 0:00:03]} Nd4+ {[%emt 0:00:11]} 47. Kd3 {[%emt 0:03:29]} 0-1

[Event "12th KIIT International 2019"]
[Site "Odisha"]
[Date "2019.06.03"]
[Round "5.14"]
[White "Rahman, Ziaur"]
[Black "Hari Madhavan N B"]
[Result "1/2-1/2"]
[ECO "B40"]
[WhiteElo "2481"]
[BlackElo "2093"]
[Annotator "ChessBase"]
[PlyCount "114"]
[EventDate "2019.05.31"]
[EventType "swiss"]
[EventCountry "IND"]
[SourceTitle "playchess.com"]
[Source "ChessBase"]
[SourceQuality "1"]
[TimeControl "5400+30"]

1. e4 {[%emt 0:00:00]} e6 {[%emt 0:00:00]} 2. d4 {[%emt 0:00:00]} d5 {[%emt 0:00:00]} 3. Nd2 {[%emt 0:00:00]} c5 {[%emt 0:00:00]} 4. Ngf3 {[%emt 0:00:16]} cxd4 {[%emt 0:00:25]} 5. Nxd4 {[%emt 0:03:54]} Nc6 {[%emt 0:00:17]} 6. Nxc6 {[%emt 0:02:09]} bxc6 {[%emt 0:00:09]} 7. Bd3 {[%emt 0:00:14]} Nf6 {[%emt 0:03:37]} 8. O-O {[%emt 0:00:39]} Bd6 {[%emt 0:05:19]} 9. Qe2 {[%emt 0:01:44]} Qc7 {[%emt 0:00:48]} 10. h3 {[%emt 0:00:32]} O-O {[%emt 0:00:28]} 11. c4 {[%emt 0:04:37]} Bb7 {[%emt 0:05:26]} 12. b3 {[%emt 0:02:20]} e5 {[%emt 0:12:43]} 13. Bb2 {[%emt 0:01:10]} d4 {[%emt 0:00:26]} 14. Nf3 {[%emt 0:13:42]} c5 {[%emt 0:15:06]} 15. Bc1 {[%emt 0:01:43]} Qc6 {[%emt 0:08:40]} 16. Re1 {[%emt 0:00:07]} Rfe8 {[%emt 0:00:39]} 17. Bg5 {[%emt 0:01:51]} Bc7 {[%emt 0:02:45]} 18. a3 {[%emt 0:02:05]} Ba5 {[%emt 0:03:43]} 19. b4 {[%emt 0:03:55]} cxb4 {[%emt 0:01:46]} 20. Bd2 {[%emt 0:00:26]} Qc5 {[%emt 0:05:37]} 21. axb4 {[%emt 0:06:29]} Bxb4 {[%emt 0:00:09]} 22. Bxb4 {[%emt 0:01:09]} Qxb4 {[%emt 0:00:06]} 23. Rab1 {[%emt 0:00:55]} Qe7 {[%emt 0:00:06]} 24. Nxe5 {[%emt 0:00:25]} Rad8 {[%emt 0:07:48]} 25. Ng4 {[%emt 0:04:37]} Nxg4 {[%emt 0:01:09]} 26. Qxg4 {[%emt 0:04:43]} Bc8 {[%emt 0:00:44]} 27. Qh5 {[%emt 0:01:02]} Be6 {[%emt 0:03:18]} 28. Rec1 {[%emt 0:05:00]} Qa3 {[%emt 0:02:04]} 29. Qd1 {[%emt 0:01:35]} Rc8 {[%emt 0:01:50]} 30. Qd2 {[%emt 0:04:42]} Rc7 {[%emt 0:01:46]} 31. Ra1 {[%emt 0:01:24]} Qd6 {[%emt 0:00:29]} 32. Ra5 {[%emt 0:05:17]} Rec8 {[%emt 0:00:47]} 33. e5 {[%emt 0:07:18]} Qe7 {[%emt 0:01:23]} 34. Bf1 {[%emt 0:00:21]} Bxc4 {[%emt 0:01:52]} 35. Qxd4 {[%emt 0:00:20]} Bxf1 {[%emt 0:00:44]} 36. Rxf1 {[%emt 0:00:13]} Rd7 {[%emt 0:01:16]} 37. Qe3 {[%emt 0:00:57]} h6 {[%emt 0:00:07]} 38. Rfa1 {[%emt 0:01:58]} Rcc7 {[%emt 0:00:10]} 39. g3 {[%emt 0:01:05]} Qb4 {[%emt 0:03:08]} 40. e6 {[%emt 0:01:31]} fxe6 {[%emt 0:00:22]} 41. Qxe6+ {[%emt 0:00:19]} Kh7 {[%emt 0:00:14]} 42. Ra6 {[%emt 0:01:15]} Qf8 {[%emt 0:04:30]} 43. Qe4+ {[%emt 0:01:33]} Kg8 {[%emt 0:01:19]} 44. Re6 {[%emt 0:03:10]} Re7 {[%emt 0:00:21]} 45. Rb1 {[%emt 0:02:34]} Rxe6 {[%emt 0:01:31]} 46. Qxe6+ {[%emt 0:00:06]} Qf7 {[%emt 0:00:18]} 47. Rb8+ {[%emt 0:03:47]} Kh7 {[%emt 0:00:07]} 48. Qe4+ {[%emt 0:00:52]} g6 {[%emt 0:00:07]} 49. h4 {[%emt 0:01:13]} Re7 {[%emt 0:01:33]} 50. Qb1 {[%emt 0:01:17]} h5 {[%emt 0:00:50]} 51. Qa1 {[%emt 0:01:47]} Qg7 {[%emt 0:00:04]} 52. Qb1 {[%emt 0:00:47]} Qe5 {[%emt 0:01:28]} 53. Qb3 {[%emt 0:01:01]} Qg7 {[%emt 0:00:40]} 54. Kg2 {[%emt 0:00:29]} Qf7 {[%emt 0:00:06]} 55. Qc3 {[%emt 0:00:35]} Qg7 {[%emt 0:00:20]} 56. Qc4 {[%emt 0:00:23]} Qf7 {[%emt 0:00:09]} 57. Qd4 {[%emt 0:00:16]} Qg7 {[%emt 0:00:06]} 1/2-1/2

[Event "12th KIIT International 2019"]
[Site "Odisha"]
[Date "2019.06.03"]
[Round "5.15"]
[White "Nguyen, Van Huy"]
[Black "Joshi, Govind Ballabh"]
[Result "1-0"]
[ECO "E04"]
[WhiteElo "2456"]
[BlackElo "2121"]
[Annotator "ChessBase"]
[PlyCount "89"]
[EventDate "2019.05.31"]
[EventType "swiss"]
[EventCountry "IND"]
[SourceTitle "playchess.com"]
[Source "ChessBase"]
[SourceQuality "1"]
[TimeControl "5400+30"]

1. d4 {[%emt 0:00:00]} d5 {[%emt 0:00:00]} 2. Nf3 {[%emt 0:00:00]} Nf6 {[%emt 0:00:00]} 3. c4 {[%emt 0:00:03]} e6 {[%emt 0:00:00]} 4. g3 {[%emt 0:00:04]} dxc4 {[%emt 0:00:00]} 5. Bg2 {[%emt 0:00:07]} a6 {[%emt 0:00:30]} 6. Ne5 {[%emt 0:00:58]} Bb4+ {[%emt 0:03:33]} 7. Nc3 {[%emt 0:00:47]} Nd5 {[%emt 0:02:21]} 8. Bd2 {[%emt 0:00:31]} Nb6 {[%emt 0:02:03]} 9. e3 {[%emt 0:03:24]} N8d7 {[%emt 0:04:48]} 10. Nxd7 {[%emt 0:03:49]} Qxd7 {[%emt 0:00:55]} 11. Ne4 {[%emt 0:02:00]} Qe7 {[%emt 0:04:44]} 12. O-O {[%emt 0:05:22]} O-O {[%emt 0:04:29]} 13. Qc2 {[%emt 0:09:59]} Bxd2 {[%emt 0:05:11]} 14. Nxd2 {[%emt 0:00:31]} e5 {[%emt 0:09:38]} 15. Nxc4 {[%emt 0:01:40]} Nxc4 {[%emt 0:01:23]} 16. Qxc4 {[%emt 0:00:06]} c6 {[%emt 0:04:09]} 17. d5 {[%emt 0:11:44]} cxd5 {[%emt 0:07:35]} 18. Qxd5 {[%emt 0:01:19]} Rd8 {[%emt 0:01:32]} 19. Qa5 {[%emt 0:00:33]} Bg4 {[%emt 0:21:50]} 20. Rac1 {[%emt 0:05:40]} Rd7 {[%emt 0:06:34]} 21. Rc5 {[%emt 0:03:03]} f6 {[%emt 0:01:05]} 22. Rfc1 {[%emt 0:02:54]} Rad8 {[%emt 0:00:38]} 23. h3 {[%emt 0:00:38]} Be6 {[%emt 0:00:42]} 24. a3 {[%emt 0:01:19]} Rd1+ {[%emt 0:10:56]} 25. Kh2 {[%emt 0:05:31]} Rxc1 {[%emt 0:00:11]} 26. Rxc1 {[%emt 0:00:05]} Rd7 {[%emt 0:00:26]} 27. Qb6 {[%emt 0:04:22]} f5 {[%emt 0:04:36]} 28. Rc5 {[%emt 0:02:32]} e4 {[%emt 0:00:34]} 29. Re5 {[%emt 0:03:03]} Rd6 {[%emt 0:00:26]} 30. Qc5 {[%emt 0:02:36]} g6 {[%emt 0:01:45]} 31. Bf1 {[%emt 0:01:25]} Kf7 {[%emt 0:01:16]} 32. Bc4 {[%emt 0:09:08]} Rc6 {[%emt 0:00:38]} 33. Bxe6+ {[%emt 0:00:48]} Rxe6 {[%emt 0:00:26]} 34. Qd5 {[%emt 0:01:27]} b6 {[%emt 0:01:05]} 35. Rxe6 {[%emt 0:01:04]} Qxe6 {[%emt 0:00:01]} 36. Qb7+ {[%emt 0:00:05]} Kg8 {[%emt 0:01:12]} 37. Qxa6 {[%emt 0:00:06]} Qb3 {[%emt 0:00:34]} 38. Qc8+ {[%emt 0:00:22]} Kf7 {[%emt 0:00:18]} 39. Qd7+ {[%emt 0:00:36]} Kf6 {[%emt 0:00:42]} 40. Qxh7 {[%emt 0:01:26]} Qc2 {[%emt 0:00:15]} 41. Qh8+ {[%emt 0:00:14]} Kf7 {[%emt 0:00:46]} 42. Kg2 {[%emt 0:00:19]} Qd1 {[%emt 0:00:32]} 43. Qd4 {[%emt 0:00:46]} Qe2 {[%emt 0:00:18]} 44. a4 {[%emt 0:00:50]} g5 {[%emt 0:00:11]} 45. b4 {[%emt 0:01:10]} 1-0

[Event "12th KIIT International 2019"]
[Site "Odisha"]
[Date "2019.06.03"]
[Round "5.16"]
[White "Swain Ashirwad"]
[Black "Kostenko, Petr"]
[Result "0-1"]
[ECO "C07"]
[WhiteElo "2118"]
[BlackElo "2473"]
[Annotator "ChessBase"]
[PlyCount "64"]
[EventDate "2019.05.31"]
[EventType "swiss"]
[EventCountry "IND"]
[SourceTitle "playchess.com"]
[Source "ChessBase"]
[SourceQuality "1"]
[TimeControl "5400+30"]

1. e4 {[%emt 0:00:00]} e6 {[%emt 0:00:00]} 2. d4 {[%emt 0:00:05]} d5 {[%emt 0:00:00]} 3. Nd2 {[%emt 0:00:16]} c5 {[%emt 0:00:00]} 4. exd5 {[%emt 0:01:38]} Qxd5 {[%emt 0:00:04]} 5. Ngf3 {[%emt 0:00:12]} cxd4 {[%emt 0:00:05]} 6. Bc4 {[%emt 0:00:26]} Qd7 {[%emt 0:00:05]} 7. O-O {[%emt 0:00:39]} Nc6 {[%emt 0:00:02]} 8. Nb3 {[%emt 0:00:46]} Nf6 {[%emt 0:00:07]} 9. Nbxd4 {[%emt 0:00:45]} Nxd4 {[%emt 0:00:06]} 10. Nxd4 {[%emt 0:01:24]} a6 {[%emt 0:00:06]} 11. c3 {[%emt 0:02:53]} Bd6 {[%emt 0:10:12]} 12. Qe2 {[%emt 0:08:04]} Qc7 {[%emt 0:01:02]} 13. h3 {[%emt 0:02:38]} O-O {[%emt 0:00:47]} 14. Bb3 {[%emt 0:05:32]} b5 {[%emt 0:03:54]} 15. Bg5 {[%emt 0:05:20]} Bb7 {[%emt 0:00:11]} 16. Bxf6 {[%emt 0:05:06]} gxf6 {[%emt 0:00:12]} 17. a4 {[%emt 0:17:46]} bxa4 {[%emt 0:09:42]} 18. Rxa4 {[%emt 0:01:20]} Kh8 {[%emt 0:00:05]} 19. Rc4 {[%emt 0:02:17]} Rg8 {[%emt 0:01:07]} 20. Nf3 {[%emt 0:06:22]} Qb6 {[%emt 0:34:19]} 21. Bc2 {[%emt 0:03:48]} f5 {[%emt 0:01:12]} 22. Qe3 {[%emt 0:02:50]} Qxe3 {[%emt 0:05:15]} 23. fxe3 {[%emt 0:00:02]} Rg3 {[%emt 0:01:29]} 24. e4 {[%emt 0:10:55]} Rag8 {[%emt 0:01:21]} 25. Ne1 {[%emt 0:00:50]} Rxh3 {[%emt 0:04:01]} 26. exf5 {[%emt 0:04:07]} Bd5 {[%emt 0:00:50]} 27. Rc8 {[%emt 0:01:07]} Rxc8 {[%emt 0:03:10]} 28. gxh3 {[%emt 0:00:01]} Bc5+ {[%emt 0:00:15]} 29. Kh2 {[%emt 0:00:10]} Rg8 {[%emt 0:00:13]} 30. Nf3 {[%emt 0:01:30]} Bd6+ {[%emt 0:00:07]} 31. Kh1 {[%emt 0:00:05]} Rg3 {[%emt 0:00:29]} 32. Bd1 {[%emt 0:01:11]} e5 {[%emt 0:02:28]} 0-1